[Event "*** SCC Grand Prix: Titled Tuesday Blitz"]
[Site "Chess.com"]
[Date "2020.10.13"]
[Round "6"]
[White "ftorodent"]
[Black "alexgo05"]
[Result "1-0"]
[WhiteElo "2680"]
[BlackElo "2440"]
[TimeControl "180+1"]
[EndTime "11:08:02 PDT"]
[Termination "ftorodent won by checkmate"]

1. d4 {[%clk 0:02:47.6]} 1... Nf6 {[%clk 0:02:59.9]} 2. c4 {[%clk 0:02:46.8]}
2... g6 {[%clk 0:03:00.2]} 3. Nc3 {[%clk 0:02:46]} 3... Bg7 {[%clk 0:02:59.9]}
4. e4 {[%clk 0:02:45.4]} 4... d6 {[%clk 0:03:00]} 5. Nf3 {[%clk 0:02:45.6]} 5...
O-O {[%clk 0:03:00.4]} 6. Be2 {[%clk 0:02:46.1]} 6... e5 {[%clk 0:03:00.8]} 7.
Be3 {[%clk 0:02:44.7]} 7... Na6 {[%clk 0:03:00]} 8. O-O {[%clk 0:02:41.5]} 8...
Ng4 {[%clk 0:02:58.7]} 9. Bg5 {[%clk 0:02:41.5]} 9... Qe8 {[%clk 0:02:59.2]} 10.
d5 {[%clk 0:02:38.3]} 10... f5 {[%clk 0:02:35.9]} 11. Nd2 {[%clk 0:02:37.5]}
11... Nf6 {[%clk 0:02:35.3]} 12. f3 {[%clk 0:02:36.6]} 12... f4 {[%clk
0:02:32.3]} 13. Bh4 {[%clk 0:02:35]} 13... h6 {[%clk 0:02:28]} 14. Bf2 {[%clk
0:02:26.8]} 14... g5 {[%clk 0:02:28.2]} 15. Rb1 {[%clk 0:02:25.8]} 15... Qg6
{[%clk 0:02:26.6]} 16. Kh1 {[%clk 0:01:52.6]} 16... h5 {[%clk 0:02:18.9]} 17. b4
{[%clk 0:01:47.9]} 17... g4 {[%clk 0:02:15.7]} 18. Re1 {[%clk 0:01:43.4]} 18...
g3 {[%clk 0:01:55.5]} 19. Bg1 {[%clk 0:01:43.5]} 19... gxh2 {[%clk 0:01:54.1]}
20. Bxh2 {[%clk 0:01:40.4]} 20... h4 {[%clk 0:01:54.3]} 21. c5 {[%clk
0:01:08.5]} 21... Nh5 {[%clk 0:01:50.5]} 22. Bxa6 {[%clk 0:01:00.6]} 22... bxa6
{[%clk 0:01:47.1]} 23. Nc4 {[%clk 0:01:00]} 23... Ng3+ {[%clk 0:01:41.3]} 24.
Kg1 {[%clk 0:00:59.8]} 24... h3 {[%clk 0:01:32]} 25. Qd2 {[%clk 0:00:59.9]}
25... Kf7 {[%clk 0:01:07.4]} 26. b5 {[%clk 0:00:50.9]} 26... Rh8 {[%clk
0:00:30.8]} 27. cxd6 {[%clk 0:00:50.1]} 27... cxd6 {[%clk 0:00:27.1]} 28. Bxg3
{[%clk 0:00:40]} 28... Qxg3 {[%clk 0:00:23.2]} 29. Nxd6+ {[%clk 0:00:38.8]}
29... Ke7 {[%clk 0:00:18.8]} 30. Nf5+ {[%clk 0:00:38.1]} 30... Bxf5 {[%clk
0:00:18.1]} 31. exf5 {[%clk 0:00:38.1]} 31... Rac8 {[%clk 0:00:14.4]} 32. Ne4
{[%clk 0:00:34.5]} 32... Qxg2+ {[%clk 0:00:06.5]} 33. Qxg2 {[%clk 0:00:34.3]}
33... hxg2 {[%clk 0:00:07.4]} 34. bxa6 {[%clk 0:00:24.1]} 34... Rc2 {[%clk
0:00:07.4]} 35. Nf2 {[%clk 0:00:22]} 35... Bf6 {[%clk 0:00:07.3]} 36. Kxg2
{[%clk 0:00:13]} 36... Bh4 {[%clk 0:00:03.8]} 37. Rxe5+ {[%clk 0:00:12.5]} 37...
Kd6 {[%clk 0:00:03.4]} 38. Re6+ {[%clk 0:00:12.6]} 38... Kxd5 {[%clk 0:00:03.1]}
39. Rd1+ {[%clk 0:00:10]} 39... Kc5 {[%clk 0:00:03.5]} 40. Rf1 {[%clk
0:00:09.7]} 40... Rg8+ {[%clk 0:00:03.4]} 41. Rg6 {[%clk 0:00:09.8]} 41... Rf8
{[%clk 0:00:02]} 42. Rg4 {[%clk 0:00:05.7]} 42... Bg3 {[%clk 0:00:02]} 43. Kg1
{[%clk 0:00:06.1]} 43... Kd4 {[%clk 0:00:01.8]} 44. Ne4 {[%clk 0:00:05.4]} 44...
Ke3 {[%clk 0:00:02.6]} 45. f6 {[%clk 0:00:05]} 45... Rf7 {[%clk 0:00:02.6]} 46.
Rg7 {[%clk 0:00:04.6]} 46... Bh2+ {[%clk 0:00:02.6]} 47. Kh1 {[%clk 0:00:04]}
47... Rf8 {[%clk 0:00:03.5]} 48. f7 {[%clk 0:00:03.7]} 48... Rh8 {[%clk
0:00:04.1]} 49. Rg8 {[%clk 0:00:02.3]} 49... Bg3+ {[%clk 0:00:04.6]} 50. Rxh8
{[%clk 0:00:02]} 50... Rf2 {[%clk 0:00:04.4]} 51. Rxf2 {[%clk 0:00:01.6]} 51...
Bxf2 {[%clk 0:00:04.7]} 52. Nxf2 {[%clk 0:00:02.1]} 52... Kxf3 {[%clk
0:00:05.6]} 53. f8=Q {[%clk 0:00:02.2]} 53... Kxf2 {[%clk 0:00:06.2]} 54. Qxf4+
{[%clk 0:00:02.3]} 54... Ke1 {[%clk 0:00:07.1]} 55. Rh2 {[%clk 0:00:01.9]} 55...
Kd1 {[%clk 0:00:08]} 56. Qf1# {[%clk 0:00:02]} 1-0

[Event "*** SCC Grand Prix: Titled Tuesday Blitz"]
[Site "Chess.com"]
[Date "2020.10.13"]
[Round "6"]
[White "dopolian"]
[Black "ElMosho7u7r"]
[Result "0-1"]
[WhiteElo "2404"]
[BlackElo "2150"]
[TimeControl "180+1"]
[EndTime "11:08:03 PDT"]
[Termination "ElMosho7u7r won by resignation"]

1. Nf3 {[%clk 0:03:00.9]} 1... d5 {[%clk 0:02:59.4]} 2. c4 {[%clk 0:03:01.1]}
2... Nf6 {[%clk 0:02:59.9]} 3. cxd5 {[%clk 0:03:00.6]} 3... Nxd5 {[%clk
0:03:00.1]} 4. e4 {[%clk 0:03:01]} 4... Nb6 {[%clk 0:03:00.6]} 5. d4 {[%clk
0:03:01.4]} 5... c6 {[%clk 0:03:00.6]} 6. h3 {[%clk 0:03:00.7]} 6... g6 {[%clk
0:03:00.7]} 7. Nc3 {[%clk 0:03:00.7]} 7... Bg7 {[%clk 0:03:01.2]} 8. Be2 {[%clk
0:02:59.9]} 8... O-O {[%clk 0:03:01.8]} 9. Be3 {[%clk 0:02:58.5]} 9... a5 {[%clk
0:03:02.3]} 10. O-O {[%clk 0:02:57.7]} 10... Na6 {[%clk 0:03:02.6]} 11. a3
{[%clk 0:02:57.1]} 11... Be6 {[%clk 0:03:00.5]} 12. Rc1 {[%clk 0:02:46.8]} 12...
Nc4 {[%clk 0:02:59.6]} 13. Qc2 {[%clk 0:02:33.6]} 13... Nxe3 {[%clk 0:02:53.5]}
14. fxe3 {[%clk 0:02:34.5]} 14... Qb6 {[%clk 0:02:48.3]} 15. e5 {[%clk
0:02:28.9]} 15... Rad8 {[%clk 0:02:40.6]} 16. Ng5 {[%clk 0:02:18.1]} 16... Bb3
{[%clk 0:02:40.3]} 17. Qb1 {[%clk 0:02:16.3]} 17... Bxe5 {[%clk 0:02:37.1]} 18.
Bxa6 {[%clk 0:02:08.3]} 18... bxa6 {[%clk 0:02:28.4]} 19. Nce4 {[%clk
0:01:53.7]} 19... Bg7 {[%clk 0:02:17.2]} 20. Nc5 {[%clk 0:01:40.2]} 20... h6
{[%clk 0:02:12.4]} 21. Nf3 {[%clk 0:01:35.4]} 21... a4 {[%clk 0:02:02.3]} 22.
Rc3 {[%clk 0:01:21.7]} 22... Rd5 {[%clk 0:01:35.9]} 23. Rfc1 {[%clk 0:01:17.7]}
23... Rfd8 {[%clk 0:01:30.9]} 24. Nxb3 {[%clk 0:01:15.1]} 24... axb3 {[%clk
0:01:31.1]} 25. Rxc6 {[%clk 0:01:15.7]} 25... Qb5 {[%clk 0:01:29.1]} 26. R6c5
{[%clk 0:01:10.6]} 26... Qe2 {[%clk 0:01:28.7]} 27. Re1 {[%clk 0:01:02.6]} 27...
Qxe1+ {[%clk 0:00:16.9]} 28. Qxe1 {[%clk 0:01:00]} 28... Rxc5 {[%clk 0:00:17.8]}
29. dxc5 {[%clk 0:01:00.2]} 29... Bxb2 {[%clk 0:00:17.7]} 30. Qb4 {[%clk
0:00:47.6]} 30... Rd3 {[%clk 0:00:13.3]} 31. Kf2 {[%clk 0:00:27.5]} 31... Bc1
{[%clk 0:00:13.5]} 32. Ne1 {[%clk 0:00:13.4]} 32... Rd2+ {[%clk 0:00:12]} 33.
Kg3 {[%clk 0:00:10.7]} 33... b2 {[%clk 0:00:12.3]} 34. Nf3 {[%clk 0:00:09.5]}
34... Rd3 {[%clk 0:00:11.7]} 35. e4 {[%clk 0:00:08.7]} 35... Rd1 {[%clk
0:00:09.2]} 36. c6 {[%clk 0:00:01.8]} 36... Bf4+ {[%clk 0:00:08.7]} 37. Kxf4
{[%clk 0:00:02]} 37... b1=Q {[%clk 0:00:09.6]} 38. Qxb1 {[%clk 0:00:02.2]} 38...
Rxb1 {[%clk 0:00:10.5]} 39. Nd4 {[%clk 0:00:02]} 39... Kf8 {[%clk 0:00:09.6]}
40. e5 {[%clk 0:00:02.1]} 40... e6 {[%clk 0:00:07.7]} 41. c7 {[%clk 0:00:01.2]}
41... Rc1 {[%clk 0:00:07.6]} 42. Ke4 {[%clk 0:00:01.3]} 42... Rxc7 {[%clk
0:00:07.1]} 43. Kf3 {[%clk 0:00:01]} 43... Rc4 {[%clk 0:00:07.2]} 44. Ne2 {[%clk
0:00:01.5]} 44... Ra4 {[%clk 0:00:07.3]} 45. Nf4 {[%clk 0:00:01.3]} 45... Rxa3+
{[%clk 0:00:08.2]} 46. Ke4 {[%clk 0:00:01.8]} 46... g5 {[%clk 0:00:09]} 47. Nd3
{[%clk 0:00:02]} 47... Ra4+ {[%clk 0:00:09.4]} 48. Ke3 {[%clk 0:00:02.1]} 48...
Ra3 {[%clk 0:00:09.6]} 49. Kd4 {[%clk 0:00:02.6]} 49... Rxd3+ {[%clk 0:00:10.3]}
50. Kxd3 {[%clk 0:00:03.5]} 50... h5 {[%clk 0:00:09.5]} 51. g4 {[%clk
0:00:02.8]} 51... hxg4 {[%clk 0:00:08.3]} 52. hxg4 {[%clk 0:00:03.7]} 52... Ke7
{[%clk 0:00:08.6]} 53. Kc4 {[%clk 0:00:04.6]} 53... Kd7 {[%clk 0:00:07.9]} 54.
Kc5 {[%clk 0:00:04.6]} 54... Kc7 {[%clk 0:00:08.4]} 55. Kb4 {[%clk 0:00:03.2]}
55... Kc6 {[%clk 0:00:09.3]} 56. Kc4 {[%clk 0:00:03.4]} 56... a5 {[%clk
0:00:09.4]} 0-1

[Event "*** SCC Grand Prix: Titled Tuesday Blitz"]
[Site "Chess.com"]
[Date "2020.10.13"]
[Round "6"]
[White "yourstrulyme"]
[Black "Larina_Marija"]
[Result "1-0"]
[WhiteElo "2423"]
[BlackElo "2262"]
[TimeControl "180+1"]
[EndTime "11:08:04 PDT"]
[Termination "yourstrulyme won on time"]

1. d4 {[%clk 0:03:00.9]} 1... f5 {[%clk 0:02:59.6]} 2. Nf3 {[%clk 0:03:00.1]}
2... Nf6 {[%clk 0:02:59.6]} 3. g3 {[%clk 0:02:57.4]} 3... g6 {[%clk 0:02:59.5]}
4. Bg2 {[%clk 0:02:58.3]} 4... Bg7 {[%clk 0:02:59.9]} 5. O-O {[%clk 0:02:59.2]}
5... O-O {[%clk 0:03:00.4]} 6. c4 {[%clk 0:02:59.5]} 6... d6 {[%clk 0:03:00.4]}
7. Nc3 {[%clk 0:02:59.4]} 7... Nc6 {[%clk 0:03:00.6]} 8. d5 {[%clk 0:02:55.6]}
8... Na5 {[%clk 0:03:00.7]} 9. b3 {[%clk 0:02:38.2]} 9... c5 {[%clk 0:02:22.2]}
10. Qc2 {[%clk 0:02:29.2]} 10... a6 {[%clk 0:02:17.9]} 11. a4 {[%clk 0:02:27.6]}
11... b5 {[%clk 0:02:08.4]} 12. axb5 {[%clk 0:02:17.8]} 12... axb5 {[%clk
0:02:09.3]} 13. Nxb5 {[%clk 0:02:17.9]} 13... Nxd5 {[%clk 0:01:58.1]} 14. Ra4
{[%clk 0:01:22.2]} 14... Nb4 {[%clk 0:01:52.2]} 15. Rxb4 {[%clk 0:01:21.7]}
15... cxb4 {[%clk 0:01:51]} 16. Ng5 {[%clk 0:01:22]} 16... Bb7 {[%clk
0:01:26.5]} 17. Ne6 {[%clk 0:01:21.6]} 17... Qd7 {[%clk 0:01:23.8]} 18. Nxf8
{[%clk 0:00:56.6]} 18... Kxf8 {[%clk 0:01:24.1]} 19. e4 {[%clk 0:00:51.5]} 19...
Kg8 {[%clk 0:00:50.2]} 20. Rd1 {[%clk 0:00:46.4]} 20... Rc8 {[%clk 0:00:44.4]}
21. Nd4 {[%clk 0:00:28.3]} 21... fxe4 {[%clk 0:00:37.5]} 22. Bxe4 {[%clk
0:00:25.4]} 22... Bxe4 {[%clk 0:00:38.4]} 23. Qxe4 {[%clk 0:00:24.9]} 23... Bxd4
{[%clk 0:00:28.8]} 24. Qxd4 {[%clk 0:00:24.4]} 24... Nxb3 {[%clk 0:00:24.2]} 25.
Qb6 {[%clk 0:00:18.5]} 25... Nxc1 {[%clk 0:00:22.9]} 26. Rxc1 {[%clk 0:00:19.4]}
26... Qe6 {[%clk 0:00:17.7]} 27. Qxb4 {[%clk 0:00:19]} 27... Rc5 {[%clk
0:00:15.3]} 28. Qb8+ {[%clk 0:00:15.5]} 28... Kg7 {[%clk 0:00:15.2]} 29. Qb2+
{[%clk 0:00:15.3]} 29... Qf6 {[%clk 0:00:14.2]} 30. Qd2 {[%clk 0:00:14.6]} 30...
h5 {[%clk 0:00:11.5]} 31. Rc3 {[%clk 0:00:13.2]} 31... h4 {[%clk 0:00:10.4]} 32.
Kg2 {[%clk 0:00:09.8]} 32... d5 {[%clk 0:00:08.9]} 33. Rf3 {[%clk 0:00:08.4]}
33... h3+ {[%clk 0:00:07.4]} 34. Kxh3 {[%clk 0:00:05.4]} 34... Qxf3 {[%clk
0:00:08.3]} 35. Qd4+ {[%clk 0:00:05.4]} 35... Kf7 {[%clk 0:00:06.1]} 36. Qxc5
{[%clk 0:00:05.2]} 36... Qf5+ {[%clk 0:00:04.7]} 37. Kg2 {[%clk 0:00:04.9]}
37... Qe4+ {[%clk 0:00:05.2]} 38. Kg1 {[%clk 0:00:04.8]} 38... Qxc4 {[%clk
0:00:05.4]} 39. Qe3 {[%clk 0:00:03.1]} 39... d4 {[%clk 0:00:04]} 40. Qf4+ {[%clk
0:00:03.2]} 40... Ke6 {[%clk 0:00:04.2]} 41. Qe4+ {[%clk 0:00:02.4]} 41... Kf6
{[%clk 0:00:04]} 42. h4 {[%clk 0:00:02.9]} 42... e5 {[%clk 0:00:03.4]} 43. Kg2
{[%clk 0:00:03.1]} 43... Qc3 {[%clk 0:00:02.7]} 44. g4 {[%clk 0:00:02.9]} 44...
Kg7 {[%clk 0:00:01.7]} 45. g5 {[%clk 0:00:03]} 45... Qc5 {[%clk 0:00:01.2]} 46.
Kf3 {[%clk 0:00:02.4]} 46... Qd6 {[%clk 0:00:01.5]} 47. Kg4 {[%clk 0:00:02.5]}
47... Qd7+ {[%clk 0:00:01.5]} 48. Kg3 {[%clk 0:00:02.6]} 48... Qf5 {[%clk
0:00:01.3]} 49. Qb7+ {[%clk 0:00:02.1]} 1-0

[Event "*** SCC Grand Prix: Titled Tuesday Blitz"]
[Site "Chess.com"]
[Date "2020.10.13"]
[Round "6"]
[White "Harsha_Bharathakoti"]
[Black "SergeyKarjakin"]
[Result "1/2-1/2"]
[WhiteElo "2776"]
[BlackElo "2902"]
[TimeControl "180+1"]
[EndTime "11:08:09 PDT"]
[Termination "Game drawn by repetition"]

1. d4 {[%clk 0:03:00.9]} 1... Nf6 {[%clk 0:03:00.4]} 2. c4 {[%clk 0:03:00.9]}
2... e6 {[%clk 0:03:01.1]} 3. Nc3 {[%clk 0:02:55.5]} 3... Bb4 {[%clk 0:03:00.4]}
4. f3 {[%clk 0:02:55.7]} 4... d5 {[%clk 0:02:58.2]} 5. a3 {[%clk 0:02:54.2]}
5... Bxc3+ {[%clk 0:02:50.2]} 6. bxc3 {[%clk 0:02:55.1]} 6... c6 {[%clk
0:02:50.4]} 7. e3 {[%clk 0:02:51.2]} 7... O-O {[%clk 0:02:41.4]} 8. Bd3 {[%clk
0:02:43.4]} 8... b6 {[%clk 0:02:39.8]} 9. Ne2 {[%clk 0:02:36.6]} 9... Ba6 {[%clk
0:02:36.9]} 10. cxd5 {[%clk 0:02:35.6]} 10... Bxd3 {[%clk 0:02:36.2]} 11. Qxd3
{[%clk 0:02:36.5]} 11... cxd5 {[%clk 0:02:32.9]} 12. O-O {[%clk 0:02:26.3]}
12... Qc8 {[%clk 0:02:25.1]} 13. e4 {[%clk 0:02:26.1]} 13... Qa6 {[%clk
0:02:24.8]} 14. Qe3 {[%clk 0:02:23.1]} 14... Nc6 {[%clk 0:02:17.4]} 15. e5
{[%clk 0:02:19.3]} 15... Nd7 {[%clk 0:02:16.9]} 16. Ng3 {[%clk 0:02:16]} 16...
Rae8 {[%clk 0:01:58.2]} 17. a4 {[%clk 0:02:00.9]} 17... f6 {[%clk 0:01:56.5]}
18. exf6 {[%clk 0:01:53.1]} 18... Nxf6 {[%clk 0:01:55.2]} 19. Ba3 {[%clk
0:01:37.4]} 19... Rf7 {[%clk 0:01:54.9]} 20. Bd6 {[%clk 0:01:37.9]} 20... Na5
{[%clk 0:01:55.2]} 21. Be5 {[%clk 0:01:36.4]} 21... Nc4 {[%clk 0:01:55]} 22. Qg5
{[%clk 0:01:36.6]} 22... Qb7 {[%clk 0:01:23.6]} 23. Rae1 {[%clk 0:01:11]} 23...
a5 {[%clk 0:01:20.1]} 24. f4 {[%clk 0:01:10.3]} 24... Nd2 {[%clk 0:01:10.2]} 25.
Bxf6 {[%clk 0:00:51.5]} 25... Nxf1 {[%clk 0:01:05.6]} 26. Nh5 {[%clk 0:00:51.3]}
26... Nd2 {[%clk 0:01:05.4]} 27. Be5 {[%clk 0:00:12.2]} 27... Ne4 {[%clk
0:00:58.7]} 28. Qg4 {[%clk 0:00:12.6]} 28... Qd7 {[%clk 0:00:23.7]} 29. c4
{[%clk 0:00:08]} 29... g6 {[%clk 0:00:18.2]} 30. h3 {[%clk 0:00:06.1]} 30...
Qxa4 {[%clk 0:00:10]} 31. cxd5 {[%clk 0:00:04.1]} 31... exd5 {[%clk 0:00:10.6]}
32. Ng3 {[%clk 0:00:03.2]} 32... Qd7 {[%clk 0:00:09.5]} 33. Qf3 {[%clk
0:00:02.6]} 33... Nxg3 {[%clk 0:00:07.9]} 34. Qxg3 {[%clk 0:00:03.5]} 34... a4
{[%clk 0:00:07.6]} 35. Kh2 {[%clk 0:00:03.5]} 35... b5 {[%clk 0:00:07.7]} 36.
Qa3 {[%clk 0:00:02.6]} 36... h5 {[%clk 0:00:06.6]} 37. Rb1 {[%clk 0:00:02.7]}
37... Kh7 {[%clk 0:00:06.3]} 38. Qc5 {[%clk 0:00:03]} 38... Rc8 {[%clk
0:00:06.1]} 39. Qb4 {[%clk 0:00:01.7]} 39... Qc6 {[%clk 0:00:04.7]} 40. Qa5
{[%clk 0:00:02.3]} 40... Rb7 {[%clk 0:00:04.2]} 41. f5 {[%clk 0:00:02.7]} 41...
gxf5 {[%clk 0:00:03.7]} 42. Qd2 {[%clk 0:00:03.2]} 42... Qg6 {[%clk 0:00:03.5]}
43. Rf1 {[%clk 0:00:02.4]} 43... b4 {[%clk 0:00:03.1]} 44. Rf3 {[%clk
0:00:02.9]} 44... b3 {[%clk 0:00:03.1]} 45. Rg3 {[%clk 0:00:03.2]} 45... Qf7
{[%clk 0:00:02]} 46. Qg5 {[%clk 0:00:01.9]} 46... b2 {[%clk 0:00:02.1]} 47. Bf6
{[%clk 0:00:01.8]} 47... Rc6 {[%clk 0:00:01.6]} 48. Qxf5+ {[%clk 0:00:02.1]}
48... Kh6 {[%clk 0:00:02.1]} 49. Qg5+ {[%clk 0:00:02.6]} 49... Kh7 {[%clk
0:00:02.3]} 50. Qf5+ {[%clk 0:00:03.3]} 50... Kh6 {[%clk 0:00:02.9]} 51. Qg5+
{[%clk 0:00:03.1]} 51... Kh7 {[%clk 0:00:03.2]} 52. Qf5+ {[%clk 0:00:03.4]}
1/2-1/2

[Event "*** SCC Grand Prix: Titled Tuesday Blitz"]
[Site "Chess.com"]
[Date "2020.10.13"]
[Round "6"]
[White "ChronicUnhappiness"]
[Black "catzapto"]
[Result "1-0"]
[WhiteElo "2355"]
[BlackElo "2156"]
[TimeControl "180+1"]
[EndTime "11:08:11 PDT"]
[Termination "ChronicUnhappiness won on time"]

1. d4 {[%clk 0:03:00.9]} 1... Nf6 {[%clk 0:02:59.9]} 2. c4 {[%clk 0:03:00.8]}
2... e6 {[%clk 0:02:58.9]} 3. Nc3 {[%clk 0:03:00.3]} 3... c6 {[%clk 0:02:59.2]}
4. e4 {[%clk 0:02:55.4]} 4... d5 {[%clk 0:02:59]} 5. e5 {[%clk 0:02:55.4]} 5...
Nfd7 {[%clk 0:02:58.6]} 6. cxd5 {[%clk 0:02:48.8]} 6... cxd5 {[%clk 0:02:58.2]}
7. f4 {[%clk 0:02:46.6]} 7... Nc6 {[%clk 0:02:55.6]} 8. Nf3 {[%clk 0:02:46.8]}
8... Qb6 {[%clk 0:02:55.8]} 9. Be2 {[%clk 0:02:44.4]} 9... f6 {[%clk 0:02:54.4]}
10. O-O {[%clk 0:02:26.7]} 10... fxe5 {[%clk 0:02:54.3]} 11. fxe5 {[%clk
0:02:24.3]} 11... Be7 {[%clk 0:02:33.4]} 12. Be3 {[%clk 0:01:57.6]} 12... Ndxe5
{[%clk 0:02:26.3]} 13. Nxe5 {[%clk 0:01:56.1]} 13... Nxe5 {[%clk 0:02:26.1]} 14.
Bb5+ {[%clk 0:01:49]} 14... Bd7 {[%clk 0:02:21.1]} 15. Qh5+ {[%clk 0:01:42.2]}
15... Ng6 {[%clk 0:02:06]} 16. Bxd7+ {[%clk 0:01:40.8]} 16... Kxd7 {[%clk
0:02:05.2]} 17. Nxd5 {[%clk 0:01:08.7]} 17... exd5 {[%clk 0:02:01]} 18. Qxd5+
{[%clk 0:01:09.6]} 18... Ke8 {[%clk 0:01:26.6]} 19. Bg5 {[%clk 0:01:04.2]} 19...
Rf8 {[%clk 0:01:11.5]} 20. Rxf8+ {[%clk 0:00:46.9]} 20... Kxf8 {[%clk
0:00:36.5]} 21. Bxe7+ {[%clk 0:00:46]} 21... Nxe7 {[%clk 0:00:32.9]} 22. Rf1+
{[%clk 0:00:44.5]} 22... Ke8 {[%clk 0:00:31.4]} 23. Re1 {[%clk 0:00:42]} 23...
Rd8 {[%clk 0:00:25.9]} 24. Qg8+ {[%clk 0:00:39.6]} 24... Kd7 {[%clk 0:00:26.3]}
25. Qxg7 {[%clk 0:00:38.1]} 25... Qd6 {[%clk 0:00:17.6]} 26. d5 {[%clk
0:00:32.8]} 26... Re8 {[%clk 0:00:13.6]} 27. Qg4+ {[%clk 0:00:31.3]} 27... Kd8
{[%clk 0:00:13.9]} 28. Qa4 {[%clk 0:00:27.5]} 28... Qd7 {[%clk 0:00:13.2]} 29.
Qxa7 {[%clk 0:00:23.9]} 29... Kc7 {[%clk 0:00:11.4]} 30. d6+ {[%clk 0:00:20.9]}
30... Kxd6 {[%clk 0:00:11]} 31. Rd1+ {[%clk 0:00:19.8]} 31... Nd5 {[%clk
0:00:11.3]} 32. Qd4 {[%clk 0:00:18.8]} 32... Qe6 {[%clk 0:00:09.6]} 33. h3
{[%clk 0:00:18.7]} 33... Qe3+ {[%clk 0:00:09.4]} 34. Qxe3 {[%clk 0:00:19]} 34...
Rxe3 {[%clk 0:00:10]} 35. Rd4 {[%clk 0:00:18.8]} 35... Re2 {[%clk 0:00:10.3]}
36. Rh4 {[%clk 0:00:18.1]} 36... Rxb2 {[%clk 0:00:10]} 37. Rxh7 {[%clk 0:00:18]}
37... Kc6 {[%clk 0:00:10.4]} 38. h4 {[%clk 0:00:17.3]} 38... Ne3 {[%clk
0:00:10.7]} 39. Rg7 {[%clk 0:00:16.7]} 39... Rxa2 {[%clk 0:00:10.6]} 40. h5
{[%clk 0:00:16.5]} 40... b5 {[%clk 0:00:08.9]} 41. h6 {[%clk 0:00:16.7]} 41...
Nf5 {[%clk 0:00:09.1]} 42. h7 {[%clk 0:00:15.8]} 42... Ra1+ {[%clk 0:00:05.8]}
43. Kh2 {[%clk 0:00:15.1]} 43... Nxg7 {[%clk 0:00:02.6]} 44. h8=Q {[%clk
0:00:15]} 44... Ra6 {[%clk 0:00:02.5]} 45. Qxg7 {[%clk 0:00:14.4]} 45... Kb6
{[%clk 0:00:03.3]} 46. Qb2 {[%clk 0:00:13.9]} 46... Ka5 {[%clk 0:00:04.2]} 47.
g4 {[%clk 0:00:14.1]} 47... b4 {[%clk 0:00:05.1]} 48. Kg3 {[%clk 0:00:14.2]}
48... Kb5 {[%clk 0:00:05]} 49. Kf4 {[%clk 0:00:13.3]} 49... Rc6 {[%clk
0:00:04.7]} 50. g5 {[%clk 0:00:13.5]} 50... Rc4+ {[%clk 0:00:05]} 51. Kf5 {[%clk
0:00:13.5]} 51... Rc5+ {[%clk 0:00:05.2]} 52. Kf6 {[%clk 0:00:13.5]} 52... Rc6+
{[%clk 0:00:04.9]} 53. Ke7 {[%clk 0:00:13.8]} 53... Rc7+ {[%clk 0:00:05.1]} 54.
Kd6 {[%clk 0:00:13]} 54... Rc6+ {[%clk 0:00:05]} 55. Kd7 {[%clk 0:00:13.3]}
55... Rc3 {[%clk 0:00:03.5]} 56. g6 {[%clk 0:00:12.5]} 56... Rd3+ {[%clk
0:00:04]} 57. Ke6 {[%clk 0:00:12]} 57... Kc4 {[%clk 0:00:04]} 58. g7 {[%clk
0:00:11.7]} 58... Re3+ {[%clk 0:00:04.4]} 59. Kf5 {[%clk 0:00:11.4]} 59... Rg3
{[%clk 0:00:03.1]} 60. Qe2+ {[%clk 0:00:11.3]} 1-0